fUST/lending_fUST_20250101
["ID","MTS","AMOUNT","RATE_DAILY","PERIOD"]
[347300471,1735667456601,-500.0,0.00020547,3]
[347300472,1735667456611,-6259.3,0.00020547,3]
[347300473,1735667456620,-500.0,0.00020547,3]
[347300474,1735667456629,-526.01,0.00020547,3]
[347300475,1735667456638,-500.0,0.00020547,3]
[347300476,1735667456647,-500.0,0.00020547,3]
[347300477,1735667456657,-500.0,0.00020547,3]
[347300478,1735667456666,-1775.9,0.00020547,3]
[347300479,1735667456675,-1175.66,0.00020547,3]
[347300480,1735667456684,-49369.0,0.00020547,3]
[347300481,1735667456693,-931.62,0.00020547,3]
[347300482,1735667456702,-500.0,0.00020547,3]
[347300483,1735667456710,-2195.01,0.00020547,3]
[347300484,1735667456721,-780.75,0.00020547,3]
[347300485,1735667456730,-500.0,0.00020547,3]
[347300486,1735667456739,-500.0,0.00020547,3]
[347300487,1735667456749,-1238.49,0.00020547,3]
[347300488,1735667456758,-573.9,0.00020547,3]
[347300489,1735667456767,-1206.983899,0.00020547,2]
[347300490,1735667456777,-2249.87,0.00020547,3]
[347300491,1735667456786,-500.0,0.00020547,3]
[347300492,1735667456795,-1770.04,0.00020547,3]
[347300493,1735667456805,-1206.983899,0.00020547,2]
[347300494,1735667456814,-4579.19,0.00020547,3]
[347300495,1735667456824,-720.35,0.00020547,3]
[347300496,1735667456833,-1152.48,0.00020547,3]
[347300497,1735667456842,-820.83,0.00020547,3]
[347300498,1735667456852,-533.66,0.00020547,3]
[347300499,1735667456862,-500.0,0.00020547,3]
[347300500,1735667456871,-500.0,0.00020547,3]
[347300501,1735667456881,-503.32136563,0.00020547,3]
[347300502,1735667456890,-602.59,0.00020547,3]
[347300503,1735667456899,-998.59,0.00020547,3]
[347300504,1735667456909,-500.0,0.00020547,3]
[347300505,1735667456918,-151.0,0.00020547,2]
[347300506,1735667456927,-151.0,0.00020547,2]
[347300507,1735667456936,-500.0,0.00020547,3]
[347300508,1735667456946,-2398.43,0.00020547,3]
[347300509,1735667456956,-500.0,0.00020547,3]
[347300510,1735667456965,-500.0,0.00020547,3]
[347300511,1735667456974,-1309.91,0.00020547,3]
[347300512,1735667456983,-500.0,0.00020547,3]
[347300513,1735667456993,-3595.1,0.00020547,3]
[347300514,1735667457002,-10162.83,0.00020547,3]
[347300515,1735667457011,-500.0,0.00020547,3]
[347300516,1735667457021,-500.0,0.00020547,3]
[347300517,1735667457030,-602.53,0.00020547,3]
[347300518,1735667457039,-1870.48,0.00020547,3]
[347300519,1735667457049,-150.0,0.00020547,2]
[347300520,1735667457058,-1000.0,0.00020563,2]
[347300521,1735667457067,-3153.48437821,0.0002061,2]
[347300522,1735667457077,-500.0,0.00020643,7]
[347300523,1735667457086,-568.71,0.00020643,7]
[347300524,1735667457095,-1000.0,0.00020679,2]
[347300525,1735667457105,-599.92003848,0.00020694,2]
[347300526,1735667457115,-1011.30722639,0.00020699,2]
[347300527,1735667457125,-198.047082,0.00020712,2]
[347300528,1735667457134,-1500.0,0.00020722,2]
[347300529,1735667457143,-1573.34628191,0.00020722,2]
[347300530,1735667457152,-4734.15602876,0.00020757,2]
[347300531,1735667457161,-25722.71962112,0.0002079,2]
[347300532,1735667457171,-151.0,0.0002079,2]
[347300533,1735667457180,-441.214446,0.0002079,2]
[347300534,1735667457189,-441.214446,0.0002079,2]
[347300535,1735667457198,-1206.983899,0.0002079,2]
[347300536,1735667457208,-1206.983899,0.0002079,2]
[347300537,1735667457217,-150.051409,0.000208,2]
[347300538,1735667457226,-166.189379,0.00020808,3]
[347300539,1735667457236,-674.34,0.00020821,3]
[347300540,1735667457245,-151.0,0.00020821,2]
[347300541,1735667457255,-151.0,0.00020821,2]
[347300542,1735667457264,-151.0,0.00020821,2]
[347300543,1735667457277,-275.927944,0.00020821,2]
[347300544,1735667457286,-151.0,0.00020821,2]
[347300545,1735667457295,-651.902247,0.00020821,2]
[347300546,1735667457304,-651.902247,0.00020821,2]
[347300547,1735667457315,-151.0,0.00020821,2]
[347300548,1735667457324,-551.321667,0.00020821,2]
[347300549,1735667457334,-382.899481,0.00020821,2]
[347300550,1735667457345,-551.321667,0.00020821,2]
[347300551,1735667457354,-382.899481,0.00020821,2]
[347300552,1735667457367,-386.366478,0.00020821,2]
[347300553,1735667457376,-386.366478,0.00020821,2]
[347300554,1735667457385,-420.885378,0.00020821,2]
[347300555,1735667457395,-151.0,0.00020821,2]
[347300556,1735667457404,-151.0,0.00020821,2]
[347300557,1735667457413,-500.0,0.00020821,3]
[347300558,1735667457422,-500.69687074,0.00020821,3]
[347300559,1735667457431,-500.0,0.00020821,3]
[347300560,1735667457441,-543.56,0.00020821,3]
[347300561,1735667457450,-500.0,0.00020821,3]
[347300562,1735667457459,-1014.439301,0.00020821,2]
[347300563,1735667457469,-1014.439301,0.00020821,2]
[347300564,1735667457478,-1014.439301,0.00020821,2]
[347300565,1735667457488,-81.94302732,0.00020821,2]
[347300566,1735667457556,-932.49627368,0.00020821,2]
[347300567,1735667457566,-151.0,0.00020821,2]
[347300568,1735667457575,-151.0,0.00020821,2]
[347300569,1735667457584,-151.0,0.00020821,2]
[347300570,1735667457594,-288.088134,0.00020821,2]
[347300571,1735667457603,-1525.91,0.00020821,3]
[347300572,1735667457616,-500.0,0.00020821,3]
[347300573,1735667457627,-500.0,0.00020821,3]
[347300574,1735667457637,-159.76976872,0.00020821,3]
[347300575,1735667457804,-435.99310408,0.00018983,2]
[347300576,1735667457814,-63.80689592,0.00020821,3]
[347300579,1735667646646,400.0,0.00013973,2]
[347300582,1735668619922,400.0,0.00013973,2]
[347300599,1735668632752,-52345.09999996,0.00016518,3]
[347300600,1735668632869,-468.915,0.00016518,3]
[347300794,1735668638537,-30996.73313495,0.00016518,3]
[347300795,1735668638650,-505.35528582,0.00016518,3]
[347300796,1735668638666,-12107.79049794,0.00016518,3]
[347300797,1735668638680,-1228.156164,0.00016518,2]
[347300798,1735668638693,-196.26215048,0.00016972,2]
[347300799,1735668638705,-455.2879824,0.00017033,2]
[347300800,1735668638715,-220.50409862,0.00017071,2]
[347300801,1735668638725,-300.0,0.00017071,2]
[347300802,1735668638735,-500.0,0.00017071,2]
[347300803,1735668638747,-462.73486265,0.00017071,2]
[347300805,1735668638759,-158.55690373,0.00017071,2]
[347300808,1735668638773,-500.0,0.00017071,2]
[347300810,1735668638785,-500.0,0.00017071,2]
[347300812,1735668638796,-500.0,0.00017071,2]
[347300814,1735668638807,-500.0,0.00017071,2]
[347300815,1735668638818,-500.0,0.00017071,2]
[347300816,1735668638829,-500.0,0.00017071,2]
[347300818,1735668638841,-500.0,0.00017071,2]
[347300820,1735668638853,-217.92289194,0.00017071,2]
[347300822,1735668638863,-423.77212005,0.00017071,2]
[347300824,1735668638874,-500.0,0.00017071,2]
[347300827,1735668638885,-500.0,0.00017071,2]
[347300829,1735668638895,-500.0,0.00017071,2]
[347300831,1735668638909,-500.0,0.00017071,2]
[347300833,1735668638920,-84738.61802757,0.00017072,14]
[347300836,1735668638938,-435.99310408,0.00017072,2]
[347300839,1735668638960,-24900.0,0.00018172,2]
[347300841,1735668638976,-500.0,0.00018175,2]
[347300842,1735668638992,-196.8672722,0.00018532,2]
[347300843,1735668639005,-612.824,0.00018532,2]
[347300844,1735668639020,-420.0,0.00018644,2]
[347300846,1735668639033,-389.94802505,0.000189,2]
[347300847,1735668639046,-389.94802501,0.000189,2]
[347300848,1735668639058,-389.94802501,0.000189,2]
[347300849,1735668639070,-389.94802501,0.000189,2]
[347300850,1735668639083,-389.94802501,0.000189,2]
[347300851,1735668639095,-389.94802501,0.000189,2]
[347300852,1735668639110,-389.94802501,0.000189,2]
[347300853,1735668639122,-152.0,0.00018934,2]
[347300854,1735668639135,-491.02,0.00018997,4]
[347300855,1735668639148,-389.94802501,0.00019001,2]
[347300856,1735668639161,-1056.27951272,0.00019078,2]
[347300857,1735668639173,-1318.96617232,0.00019112,2]
[347300858,1735668639186,-151.0,0.00019166,2]
[347300859,1735668639198,-500.0,0.00019173,2]
[347300860,1735668639210,-517.74143387,0.00019173,2]
[347300861,1735668639222,-633.64993133,0.00019173,2]
[347300862,1735668639234,-500.0,0.00019173,2]
[347300863,1735668639246,-204.04746096,0.00019177,2]
[347300864,1735668639257,-500.0,0.00019177,2]
[347300865,1735668639268,-254.60959638,0.00019177,2]
[347300866,1735668639279,-500.0,0.00019178,2]
[347300867,1735668639291,-160.76815806,0.00019178,2]
[347300868,1735668639301,-367.13289386,0.00019178,2]
[347300869,1735668639313,-525.49,0.00019178,2]
[347300870,1735668639324,-500.0,0.00019178,2]
[347300871,1735668639334,-504.52758412,0.00019178,2]
[347300872,1735668639345,-500.0,0.00019178,2]
[347300873,1735668639360,-1000.0,0.00019178,2]
[347300874,1735668639371,-500.0,0.00019178,2]
[347300875,1735668639382,-500.0,0.00019178,2]
[347300876,1735668639393,-734.17,0.00019178,2]
[347300877,1735668639404,-500.0,0.00019178,2]
[347300878,1735668639414,-455.0,0.00019178,2]
[347300879,1735668639426,-500.0,0.00019178,2]
[347300880,1735668639436,-188.0,0.00019178,2]
[347300881,1735668639446,-500.0,0.00019178,2]
[347300882,1735668639457,-613.12939223,0.00019178,2]
[347300883,1735668639467,-500.0,0.00019178,2]
[347300884,1735668639479,-500.0,0.00019178,2]
[347300885,1735668639490,-500.0,0.00019178,2]
[347300886,1735668639501,-500.0,0.00019178,2]
[347300887,1735668639512,-500.0,0.00019178,2]
[347300888,1735668639523,-508.23314373,0.00019178,2]
[347300889,1735668639534,-500.0,0.00019178,2]
[347300890,1735668639545,-500.0,0.00019178,2]
[347300891,1735668639557,-500.0,0.00019178,2]
[347300892,1735668639568,-320.79362068,0.00019178,2]
[347300893,1735668639580,-536.44,0.00019178,2]
[347300894,1735668639594,-500.0,0.00019178,2]
[347300895,1735668639606,-503.14849776,0.00019178,2]
[347300896,1735668639617,-500.0,0.00019178,2]
[347300897,1735668639628,-500.0,0.00019178,2]
[347300898,1735668639639,-492.28703826,0.00019178,2]
[347300899,1735668639649,-500.0,0.00019178,2]
[347300900,1735668639658,-500.0,0.00019178,2]
[347300901,1735668639668,-571.74926765,0.00019178,2]
[347300902,1735668639677,-500.0,0.00019178,2]
[347300903,1735668639687,-500.0,0.00019178,2]
[347300904,1735668639696,-505.95060473,0.00019178,2]
[347300905,1735668639904,-500.0,0.00019178,2]
[347300906,1735668639914,-500.0,0.00019178,2]
[347300907,1735668639923,-502.11,0.00019178,2]
[347300908,1735668639933,-500.0,0.00019178,2]
[347300909,1735668639942,-500.0,0.00019178,2]
[347300910,1735668639953,-500.0,0.00019178,2]
[347300911,1735668639962,-500.0,0.00019178,2]
[347300912,1735668639971,-500.0,0.00019178,2]
[347300913,1735668639981,-500.86099914,0.00019178,2]
[347300914,1735668639990,-500.0,0.00019178,2]
[347300915,1735668639999,-500.0,0.00019178,2]
[347300916,1735668640008,-500.0,0.00019178,2]
[347300917,1735668640018,-502.91239522,0.00019178,2]
[347300918,1735668640027,-1621.23,0.00019178,2]
[347300919,1735668640036,-521.96,0.00019178,2]
[347300920,1735668640045,-500.0,0.00019178,2]
[347300921,1735668640054,-500.0,0.00019178,2]
[347300923,1735668640063,-500.0,0.00019178,2]
[347300925,1735668640073,-500.0,0.00019178,2]
[347300927,1735668640082,-500.0,0.00019178,2]
[347300928,1735668640091,-500.0,0.00019178,2]
[347300929,1735668640101,-500.0,0.00019178,2]
[347300931,1735668640110,-503.12171205,0.00019178,2]
[347300933,1735668640119,-516.03,0.00019178,2]
[347300934,1735668640129,-806.41,0.00019178,2]
[347300935,1735668640138,-500.0,0.00019178,2]
[347300936,1735668640147,-902.8,0.00019178,2]
[347300937,1735668640156,-500.0,0.00019178,2]
[347300938,1735668640165,-232.9285885,0.00019178,2]
[347300939,1735668640174,-500.0,0.00019178,2]
[347300940,1735668640183,-500.0,0.00019178,2]
[347300941,1735668640192,-534.58698682,0.00019178,2]
[347300942,1735668640201,-500.0,0.00019178,2]
[347300943,1735668640210,-500.0,0.00019178,2]
[347300945,1735668640220,-522.9067441,0.00019178,2]
[347300946,1735668640229,-500.0,0.00019178,2]
[347300947,1735668640238,-500.0,0.00019178,2]
[347300948,1735668640247,-458.63960152,0.00019178,2]
[347300949,1735668640256,-500.0,0.00019178,2]
[347300950,1735668640265,-500.0,0.00019178,2]
[347300951,1735668640275,-500.0,0.00019178,2]
[347300952,1735668640284,-508.0383041,0.00019178,2]
[347300953,1735668640295,-500.0,0.00019178,2]
[347300954,1735668640304,-500.0,0.00019178,2]
[347300955,1735668640313,-589.09,0.00019178,2]
[347300956,1735668640322,-500.0,0.00019178,2]
[347300957,1735668640332,-500.0,0.00019178,2]
[347300958,1735668640341,-500.0,0.00019178,2]
[347300959,1735668640351,-500.0,0.00019178,2]
[347300960,1735668640361,-500.0,0.00019178,2]
[347300962,1735668640370,-500.0,0.00019178,2]
[347300963,1735668640379,-522.98,0.00019178,2]
[347300964,1735668640388,-408.95633005,0.00019178,2]
[347300965,1735668640397,-640.84134407,0.00019178,2]
[347300966,1735668640406,-500.0,0.00019178,2]
[347300967,1735668640416,-500.0,0.00019178,2]
[347300968,1735668640425,-545.94,0.00019178,2]
[347300969,1735668640435,-5614.94,0.00019178,2]
[347300970,1735668640444,-759.41,0.00019178,2]
[347300971,1735668640453,-500.0,0.00019178,2]
[347300972,1735668640462,-500.0,0.00019178,2]
[347300973,1735668640472,-500.0,0.00019178,2]
[347300974,1735668640481,-500.0,0.00019178,2]
[347300976,1735668640490,-502.51270683,0.00019178,2]
[347300977,1735668640499,-591.71422377,0.00019178,2]
[347300978,1735668640508,-502.45775699,0.00019178,2]
[347300979,1735668640517,-500.0,0.00019178,2]
[347300980,1735668640527,-500.0,0.00019178,2]
[347300981,1735668640536,-500.0,0.00019178,2]
[347300982,1735668640545,-500.0,0.00019178,2]
[347300983,1735668640555,-517.61,0.00019178,2]
[347300984,1735668640564,-500.0,0.00019178,2]
[347300986,1735668640573,-500.0,0.00019178,2]
[347300988,1735668640582,-500.0,0.00019178,2]
[347300989,1735668640591,-500.0,0.00019178,2]
[347300990,1735668640601,-500.0,0.00019178,2]
[347300991,1735668640610,-500.0,0.00019178,2]
[347300992,1735668640619,-500.0,0.00019178,2]
[347300993,1735668640628,-500.0,0.00019178,2]
[347300994,1735668640637,-500.0,0.00019178,2]
[347300995,1735668640646,-480.93022324,0.00019178,2]
[347300996,1735668640655,-503.08783653,0.00019178,2]
[347300997,1735668640664,-542.51371461,0.00019178,2]
[347300999,1735668640673,-500.0,0.00019178,2]
[347301000,1735668640682,-500.0,0.00019178,2]
[347301002,1735668640692,-500.0,0.00019178,2]
[347301003,1735668640702,-500.0,0.00019178,2]
[347301004,1735668640711,-500.0,0.00019178,2]
[347301005,1735668640721,-973.69,0.00019178,2]
[347301006,1735668640730,-500.0,0.00019178,2]
[347301007,1735668640739,-502.48432463,0.00019178,2]
[347301008,1735668640748,-500.0,0.00019178,2]
[347301009,1735668640757,-8683.31,0.00019178,2]
[347301010,1735668640766,-500.0,0.00019178,2]
[347301011,1735668640775,-501.97013067,0.00019178,2]
[347301012,1735668640784,-500.0,0.00019178,2]
[347301013,1735668640793,-504.31654512,0.00019178,2]
[347301014,1735668640802,-500.0,0.00019178,2]
[347301015,1735668640811,-500.0,0.00019178,2]
[347301016,1735668640821,-500.0,0.00019178,2]
[347301017,1735668640830,-500.0,0.00019178,2]
[347301018,1735668640839,-500.0,0.00019178,2]
[347301019,1735668640849,-500.0,0.00019178,2]
[347301020,1735668640857,-500.0,0.00019178,2]
[347301021,1735668640867,-577.61,0.00019178,2]
[347301022,1735668640876,-592.17,0.00019178,2]
[347301023,1735668640885,-500.0,0.00019178,2]
[347301024,1735668640895,-500.0,0.00019178,2]
[347301025,1735668640906,-500.0,0.00019178,2]
[347301026,1735668640915,-500.0,0.00019178,2]
[347301027,1735668640925,-500.0,0.00019178,2]
[347301028,1735668640934,-500.0,0.00019178,2]
[347301029,1735668640944,-500.0,0.00019178,2]
[347301030,1735668640954,-500.0,0.00019178,2]
[347301031,1735668640964,-1148.79,0.00019178,2]
[347301032,1735668640973,-500.0,0.00019178,2]
[347301033,1735668640983,-502.63721505,0.00019178,2]
[347301034,1735668640993,-484.53775885,0.00019178,2]
[347301035,1735668641003,-500.0,0.00019178,2]
[347301036,1735668641013,-500.0,0.00019178,2]
[347301037,1735668641022,-500.0,0.00019178,2]
[347301038,1735668641032,-500.0,0.00019178,2]
[347301039,1735668641041,-500.0,0.00019178,2]
[347301040,1735668641051,-500.0,0.00019178,2]
[347301041,1735668641059,-500.0,0.00019178,2]
[347301042,1735668641069,-500.0,0.00019178,2]
[347301043,1735668641078,-500.0,0.00019178,2]
[347301044,1735668641087,-500.0,0.00019178,2]
[347301045,1735668641096,-500.0,0.00019178,2]
[347301046,1735668641106,-501.99339118,0.00019178,2]
[347301047,1735668641116,-500.0,0.00019178,2]
[347301048,1735668641125,-502.16,0.00019178,2]
[347301049,1735668641134,-513.80924582,0.00019178,2]
[347301050,1735668641143,-500.0,0.00019178,2]
[347301051,1735668641152,-1132.64,0.00019178,2]
[347301052,1735668641161,-5833.04,0.00019178,2]
[347301053,1735668641170,-500.0,0.00019178,2]
[347301054,1735668641180,-500.0,0.00019178,2]
[347301055,1735668641190,-1512.88,0.00019178,2]
[347301056,1735668641200,-500.0,0.00019178,2]
[347301057,1735668641210,-769.3,0.00019178,2]
[347301058,1735668641219,-153.1686384,0.00019178,2]
[347301059,1735668641228,-500.0,0.00019178,2]
[347301060,1735668641238,-731.64,0.00019178,2]
[347301061,1735668641247,-500.0,0.00019178,2]
[347301062,1735668641257,-308.24090254,0.00019178,2]
[347301063,1735668641266,-500.0,0.00019178,2]
[347301064,1735668641275,-500.0,0.00019178,2]
[347301065,1735668641284,-500.0,0.00019178,2]
[347301066,1735668641294,-224.48763208,0.00019178,2]
[347301067,1735668641303,-500.0,0.00019178,2]
[347301068,1735668641313,-500.0,0.00019178,2]
[347301069,1735668641323,-500.0,0.00019178,2]
[347301070,1735668641333,-500.0,0.00019178,2]
[347301071,1735668641342,-500.0,0.00019178,2]
[347301072,1735668641353,-500.0,0.00019178,2]
[347301073,1735668641362,-500.0,0.00019178,2]
[347301074,1735668641372,-3050.94,0.00019178,2]
[347301075,1735668641382,-500.0,0.00019178,2]
[347301076,1735668641391,-969.77,0.00019178,2]
[347301077,1735668641401,-500.0,0.00019178,2]
[347301078,1735668641411,-507.69576642,0.00019178,2]
[347301079,1735668641421,-500.0,0.00019178,2]
[347301080,1735668641431,-500.0,0.00019178,2]
[347301081,1735668641442,-500.0,0.00019178,2]
[347301082,1735668641451,-500.0,0.00019178,2]
[347301083,1735668641460,-832.55,0.00019178,2]
[347301084,1735668641471,-770.7,0.00019178,2]
[347301085,1735668641480,-500.0,0.00019178,2]
[347301086,1735668641489,-500.0,0.00019178,2]
[347301087,1735668641499,-1429.98,0.00019178,2]
[347301088,1735668641508,-557.67,0.00019178,2]
[347301089,1735668641518,-500.0,0.00019178,2]
[347301090,1735668641527,-500.0,0.00019178,2]
[347301091,1735668641537,-500.0,0.00019178,2]
[347301092,1735668641546,-500.0,0.00019178,2]
[347301093,1735668641555,-500.0,0.00019178,2]
[347301094,1735668641565,-500.0,0.00019178,2]
[347301095,1735668641574,-502.10794084,0.00019178,2]
[347301096,1735668641583,-500.0,0.00019178,2]
[347301097,1735668641593,-500.0,0.00019178,2]
[347301098,1735668641603,-500.0,0.00019178,2]
[347301099,1735668641612,-500.0,0.00019178,2]
[347301100,1735668641621,-500.0,0.00019178,2]
[347301101,1735668641631,-500.0,0.00019178,2]
[347301102,1735668641640,-500.0,0.00019178,2]
[347301103,1735668641650,-1584.09,0.00019178,2]
[347301104,1735668641659,-832.15,0.00019178,2]
[347301105,1735668641668,-500.0,0.00019178,2]
[347301106,1735668641677,-384.83537564,0.00019178,2]
[347301107,1735668641686,-759.0,0.00019178,2]
[347301108,1735668641696,-1933.34,0.00019178,2]
[347301109,1735668641706,-3028.4,0.00019178,2]
[347301110,1735668641716,-761.91,0.00019178,2]
[347301111,1735668641725,-500.0,0.00019178,2]
[347301112,1735668641735,-1979.06,0.00019178,2]
[347301113,1735668641744,-500.0,0.00019178,2]
[347301114,1735668641754,-500.0,0.00019178,2]
[347301115,1735668641763,-500.0,0.00019178,2]
[347301116,1735668641773,-500.0,0.00019178,2]
[347301117,1735668641783,-1587.14,0.00019178,2]
[347301118,1735668641793,-500.0,0.00019178,2]
[347301119,1735668641802,-500.0,0.00019178,2]
[347301120,1735668641811,-500.0,0.00019178,2]
[347301121,1735668641821,-500.0,0.00019178,2]
[347301122,1735668641831,-500.0,0.00019178,2]
[347301123,1735668641840,-42182.04,0.00019178,2]
[347301124,1735668641851,-5363.25,0.00019178,2]
[347301125,1735668641861,-500.0,0.00019178,2]
[347301126,1735668641870,-500.0,0.00019178,2]
[347301127,1735668641880,-1031.11,0.00019178,2]
[347301128,1735668641890,-500.0,0.00019178,2]
[347301129,1735668641900,-500.0,0.00019178,2]
[347301130,1735668641912,-500.0,0.00019178,2]
[347301131,1735668641921,-483.09680624,0.00019178,2]
[347301132,1735668641931,-930.59,0.00019178,2]
[347301133,1735668641943,-781.61,0.00019178,2]
[347301134,1735668641952,-500.0,0.00019178,2]
[347301135,1735668641962,-500.0,0.00019178,2]
[347301136,1735668641971,-1163.89,0.00019178,2]
[347301137,1735668641982,-1299.77,0.00019178,2]
[347301138,1735668641991,-870.7,0.00019178,2]
[347301139,1735668642001,-684.02,0.00019178,2]
[347301140,1735668642010,-500.0,0.00019178,2]
[347301141,1735668642019,-863.36,0.00019178,2]
[347301142,1735668642028,-500.0,0.00019178,2]
[347301143,1735668642038,-500.0,0.00019178,2]
[347301144,1735668642049,-500.0,0.00019178,2]
[347301145,1735668642058,-1094.57,0.00019178,2]
[347301146,1735668642067,-500.0,0.00019178,2]
[347301147,1735668642078,-500.0,0.00019178,2]
[347301148,1735668642087,-500.0,0.00019178,2]
[347301149,1735668642096,-500.0,0.00019178,2]
[347301150,1735668642105,-500.0,0.00019178,2]
[347301151,1735668642114,-500.0,0.00019178,2]
[347301152,1735668642123,-500.0,0.00019178,2]
[347301153,1735668642133,-500.0,0.00019178,2]
[347301154,1735668642142,-500.0,0.00019178,2]
[347301155,1735668642151,-1002.07,0.00019178,2]
[347301156,1735668642160,-1000.0,0.00019178,2]
[347301157,1735668642170,-500.0,0.00019178,2]
[347301158,1735668642179,-500.0,0.00019178,2]
[347301159,1735668642187,-500.0,0.00019178,2]
[347301160,1735668642196,-909.7,0.00019178,2]
[347301161,1735668642206,-500.0,0.00019178,2]
[347301162,1735668642214,-500.0,0.00019178,2]
[347301163,1735668642223,-500.0,0.00019178,2]
[347301164,1735668642232,-500.0,0.00019178,2]
[347301165,1735668642242,-500.0,0.00019178,2]
[347301166,1735668642251,-500.0,0.00019178,2]
[347301167,1735668642260,-500.0,0.00019178,2]
[347301168,1735668642269,-1021.39,0.00019178,2]
[347301169,1735668642278,-500.0,0.00019178,2]
[347301170,1735668642288,-500.0,0.00019178,2]
[347301171,1735668642297,-776.35,0.00019178,2]
[347301172,1735668642306,-500.0,0.00019178,2]
[347301173,1735668642315,-500.0,0.00019178,2]
[347301174,1735668642323,-8791.02,0.00019178,2]
[347301175,1735668642333,-500.0,0.00019178,2]
[347301176,1735668642342,-500.0,0.00019178,2]
[347301177,1735668642351,-247.13254516,0.00019178,2]
[347301178,1735668642360,-500.0,0.00019178,2]
[347301179,1735668642370,-1192.86,0.00019178,2]
[347301180,1735668642380,-768.06,0.00019178,2]
[347301181,1735668642390,-595.84186455,0.00019178,2]
[347301182,1735668642399,-257.79901667,0.00019178,2]
[347301183,1735668642409,-500.0,0.00019178,2]
[347301184,1735668642419,-500.0,0.00019178,2]
[347301185,1735668642429,-1423.94,0.00019178,2]
[347301186,1735668642439,-615.29218176,0.00019178,2]
[347301187,1735668642448,-500.0,0.00019178,2]
[347301188,1735668642458,-3107.38,0.00019178,2]
[347301189,1735668642468,-500.0,0.00019178,2]
[347301190,1735668642478,-812.33,0.00019178,2]
[347301191,1735668642487,-500.0,0.00019178,2]
[347301192,1735668642497,-500.0,0.00019178,2]
[347301193,1735668642506,-1993.67,0.00019178,2]
[347301194,1735668642516,-500.0,0.00019178,2]
[347301195,1735668642525,-500.0,0.00019178,2]
[347301196,1735668642535,-850.38,0.00019178,2]
[347301197,1735668642544,-508.03540037,0.00019178,2]
[347301198,1735668642554,-3945.13,0.00019178,2]
[347301199,1735668642563,-482.91177722,0.00019178,2]
[347301200,1735668642573,-842.88,0.00019178,2]
[347301201,1735668642582,-500.0,0.00019178,2]
[347301202,1735668642592,-833.17,0.00019178,2]
[347301203,1735668642601,-600.29,0.00019178,2]
[347301204,1735668642611,-500.0,0.00019178,2]
[347301205,1735668642620,-1227.77,0.00019178,2]
[347301206,1735668642630,-500.0,0.00019178,2]
[347301207,1735668642639,-500.0,0.00019178,2]
[347301208,1735668642649,-1467.89,0.00019178,2]
[347301209,1735668642658,-735.48,0.00019178,2]
[347301210,1735668642668,-832.16,0.00019178,2]
[347301211,1735668642678,-500.0,0.00019178,2]
[347301212,1735668642687,-500.0,0.00019178,2]
[347301213,1735668642696,-500.0,0.00019178,2]
[347301214,1735668642706,-2082.02,0.00019178,2]
[347301215,1735668642716,-500.0,0.00019178,2]
[347301216,1735668642725,-500.0,0.00019178,2]